bitfinex/quotes_BTCUSD_20250213
["timestamp","ask_amount","ask_price","bid_price","bid_amount"]
[1739489170752,0.155218,96638.0,96635.0,0.01428002]
[1739489170902,0.155218,96638.0,96632.0,0.155227]
[1739489171105,0.206953,96640.0,96636.0,0.01428002]
[1739489171106,0.155217,96639.0,96636.0,0.01428002]
[1739489171310,0.155218,96638.0,96632.0,0.155227]
[1739489171868,0.155217,96639.0,96633.0,0.01428002]
[1739489172043,0.155218,96638.0,96633.0,0.16950602]
[1739489172279,0.155218,96639.0,96633.0,0.155226]
[1739489172483,0.155219,96638.0,96634.0,0.01428002]
[1739489172862,0.155219,96638.0,96632.0,0.155228]
[1739489173020,0.155217,96639.0,96635.0,0.01427555]
[1739489173222,0.155217,96639.0,96633.0,0.155225]
[1739489173417,0.155217,96639.0,96634.0,0.01427555]
[1739489173626,0.155217,96639.0,96634.0,0.155224]
[1739489173822,0.21439237,96641.0,96635.0,0.01427555]
[1739489174024,0.155219,96638.0,96632.0,0.206969]
[1739489174224,0.21439237,96641.0,96635.0,0.155221]
[1739489174420,0.155218,96639.0,96633.0,0.206966]
[1739489174743,0.42134337,96641.0,96634.0,0.01427555]
[1739489174940,0.21439237,96641.0,96634.0,0.01427555]
[1739489175121,0.36960537,96641.0,96635.0,0.155221]
[1739489175441,0.155219,96638.0,96636.0,0.01427555]
[1739489175586,0.1553255,96638.0,96633.0,0.155225]
[1739489175785,0.1553255,96638.0,96634.0,0.01427555]
[1739489176839,0.0001065,96638.0,96634.0,0.01427555]
[1739489177043,0.0001065,96638.0,96634.0,0.155223]
[1739489177342,0.0001065,96638.0,96633.0,0.155226]
[1739489177539,0.0001065,96638.0,96635.0,0.01427555]
[1739489177767,0.1553245,96638.0,96633.0,0.155225]
[1739489177904,0.0001065,96638.0,96636.0,0.01427555]
[1739489178109,0.1553245,96638.0,96620.0,0.206995]
[1739489178329,0.1553245,96638.0,96632.0,0.155226]
[1739489178542,0.1553245,96638.0,96633.0,0.155226]
[1739489178972,0.0001065,96638.0,96629.0,0.155232]
[1739489179125,0.0001065,96638.0,96625.0,0.30948865]
[1739489179322,0.20696,96637.0,96630.0,0.16950555]
[1739489179509,0.20696,96637.0,96625.0,0.10250365]
[1739489179710,0.20696,96637.0,96631.0,0.01427555]
[1739489179923,0.155223,96635.0,96630.0,0.155229]
[1739489180121,0.155223,96635.0,96632.0,0.01427555]
[1739489180491,0.155223,96635.0,96630.0,0.155229]
[1739489180492,0.155223,96635.0,96633.0,0.01427555]
[1739489180844,0.155228,96632.0,96627.0,0.20698]
[1739489181075,0.155225,96634.0,96628.0,0.01427555]
[1739489181422,0.155225,96634.0,96629.0,0.155232]
[1739489181822,0.155225,96634.0,96630.0,0.01427555]
[1739489182915,0.206962,96636.0,96630.0,0.01427555]
[1739489183116,0.155225,96634.0,96630.0,0.01427555]
[1739489183333,0.155225,96634.0,96629.0,0.155232]
[1739489183538,0.155225,96634.0,96631.0,0.01427555]
[1739489183734,0.155225,96634.0,96629.0,0.155232]
[1739489184246,0.155225,96634.0,96630.0,0.01427555]
[1739489184542,0.206962,96636.0,96630.0,0.01427555]
[1739489184764,0.15513126,96635.0,96630.0,0.01427555]
[1739489186883,0.15513126,96635.0,96630.0,0.0144992]
[1739489190339,0.15513126,96635.0,96630.0,0.1697292]
[1739489191163,0.0001065,96638.0,96630.0,0.0144992]
[1739489191466,0.155229,96631.0,96630.0,0.00022365]
[1739489192269,0.155229,96631.0,96630.0,0.0144992]
[1739489192479,0.155229,96631.0,96630.0,0.00022365]
[1739489192682,0.155229,96631.0,96630.0,0.01450389]
[1739489192835,0.155229,96631.0,96630.0,0.00022365]
[1739489193243,0.155229,96631.0,96630.0,0.01450389]
[1739489193446,0.155229,96631.0,96630.0,0.00022365]
[1739489193735,0.155229,96631.0,96630.0,0.01450389]
[1739489193963,0.155229,96631.0,96630.0,0.00022365]
[1739489194166,0.155229,96631.0,96630.0,0.01450389]
[1739489194371,0.155226,96634.0,96630.0,0.00022365]
[1739489194568,0.155227,96633.0,96630.0,0.01450389]
[1739489194789,0.20696,96637.0,96630.0,0.00022365]
[1739489194979,0.206965,96635.0,96630.0,0.00022365]
[1739489195179,0.155228,96632.0,96630.0,0.00022365]
[1739489195404,0.155228,96632.0,96631.0,0.01428024]
[1739489195815,0.155228,96632.0,96630.0,0.00022365]
[1739489196011,0.155229,96631.0,96630.0,0.00022365]
[1739489197373,0.20697,96633.0,96630.0,0.00022365]
[1739489197585,0.155229,96631.0,96630.0,0.00022365]
[1739489199727,0.155229,96631.0,96630.0,0.01450389]
[1739489200041,0.155229,96631.0,96630.0,0.00022365]
[1739489207570,0.155229,96631.0,96630.0,0.01450525]
[1739489207772,0.155229,96631.0,96630.0,0.00022365]
[1739489207931,0.155229,96631.0,96630.0,0.01450525]
[1739489208134,0.155229,96631.0,96630.0,0.00022365]
[1739489208383,0.155229,96631.0,96630.0,0.01450525]
[1739489208556,0.155229,96631.0,96630.0,0.00022365]
[1739489208755,0.155229,96631.0,96630.0,0.01450525]
[1739489208934,0.155229,96631.0,96630.0,0.00022365]
[1739489209140,0.0001065,96635.0,96630.0,0.01450525]
[1739489209337,0.155229,96631.0,96630.0,0.00022365]
[1739489210488,0.206966,96634.0,96630.0,0.00022365]
[1739489211315,0.155229,96631.0,96630.0,0.00022365]
[1739489224321,0.17465038,96631.0,96630.0,0.00022365]
[1739489227731,0.27715403,96631.0,96630.0,0.00022365]
[1739489227932,0.35405403,96631.0,96630.0,0.00022365]
[1739489228513,0.35559775,96631.0,96630.0,0.00022365]
[1739489229344,0.50559775,96631.0,96630.0,0.00022365]
[1739489231072,0.52498168,96631.0,96630.0,0.00022365]
[1739489231889,0.54798168,96631.0,96630.0,0.00022365]
[1739489232095,0.405839,96625.0,96624.0,0.00022365]
[1739489232403,0.50834265,96625.0,96624.0,0.00022365]
[1739489232607,0.50834265,96625.0,96624.0,0.02401574]
[1739489232944,0.85412658,96625.0,96624.0,0.00022365]
[1739489233376,0.32824,96624.0,96623.0,0.4207958]
[1739489233505,0.88654365,96624.0,96623.0,0.3586988]
[1739489233705,0.88654365,96624.0,96623.0,0.38249089]
[1739489235276,0.90592758,96624.0,96623.0,0.38249089]
[1739489235692,0.90592758,96624.0,96623.0,0.34109289]
[1739489235825,0.90892758,96624.0,96623.0,0.34209289]
[1739489236024,0.91592758,96624.0,96623.0,0.34209289]
[1739489236595,0.90892758,96624.0,96623.0,0.34209289]
[1739489236801,0.91592758,96624.0,96623.0,0.34209289]
[1739489237006,0.89654365,96624.0,96623.0,0.34209289]
[1739489239179,0.89654365,96624.0,96623.0,0.0551042]
[1739489239417,0.155281,96599.0,96598.0,0.08282517]
[1739489239798,0.155281,96599.0,96598.0,0.01993274]
[1739489239976,0.155298,96588.0,96587.0,0.0471]
[1739489240381,0.155298,96588.0,96587.0,0.06703274]
[1739489240593,0.155298,96588.0,96587.0,0.01993274]
[1739489240797,0.155308,96582.0,96577.0,0.0471]
[1739489241290,0.15535185,96582.0,96577.0,0.0471]
[1739489241490,0.17195512,96582.0,96577.0,0.0471]
[1739489242460,0.17195512,96582.0,96580.0,0.0825]
[1739489243040,0.17195512,96582.0,96581.0,0.0021065]
[1739489243405,4.385e-05,96582.0,96581.0,0.0021065]
[1739489243606,4.385e-05,96582.0,96581.0,0.02203924]
[1739489245074,4.385e-05,96582.0,96581.0,0.17734924]
[1739489248641,4.385e-05,96582.0,96581.0,0.40705289]
[1739489251515,4.385e-05,96582.0,96581.0,0.40505289]
[1739489251853,0.00104385,96582.0,96581.0,0.40605289]
[1739489252000,0.00204385,96582.0,96581.0,0.41105289]
[1739489253976,0.30166562,96600.0,96581.0,0.25574289]
[1739489254132,0.155288,96595.0,96589.0,0.155296]
[1739489254338,0.155288,96595.0,96590.0,0.10250365]
[1739489254560,0.155286,96596.0,96590.0,0.27781602]
[1739489254993,0.155284,96597.0,96591.0,0.155293]
[1739489255135,0.01669129,96598.0,96592.0,0.10250365]
[1739489255325,0.155281,96599.0,96593.0,0.155289]
[1739489255697,0.155281,96599.0,96593.0,0.175312]
[1739489256021,0.155281,96599.0,96594.0,0.155289]
[1739489256228,0.155279,96600.0,96594.0,0.155289]
[1739489256458,0.0001066,96595.0,96594.0,0.155289]
[1739489256874,0.0001066,96595.0,96593.0,0.001]
[1739489257833,0.0001066,96595.0,96593.0,0.003]
[1739489258008,0.155289,96594.0,96593.0,0.002]
[1739489258330,0.155289,96594.0,96592.0,0.10250365]
[1739489258531,0.155289,96594.0,96593.0,0.003]
[1739489258958,0.155289,96594.0,96593.0,0.006]
[1739489259133,0.155289,96594.0,96593.0,0.003]
[1739489259358,0.155295,96590.0,96584.0,0.155304]
[1739489259693,0.0001066,96595.0,96585.0,0.02001542]
[1739489259916,0.155295,96590.0,96582.0,0.207076]
[1739489260079,0.155295,96590.0,96586.0,0.02001542]
[1739489260991,0.155295,96590.0,96584.0,0.155305]
[1739489261204,0.24991462,96594.0,96593.0,0.004]
[1739489261385,0.155289,96594.0,96593.0,0.002]
[1739489261824,0.155289,96594.0,96583.0,0.10250365]
[1739489261825,0.1553,96587.0,96586.0,0.004]
[1739489262031,0.155308,96582.0,96581.0,0.04757013]
[1739489262417,0.155308,96582.0,96581.0,0.00017013]
[1739489264694,0.20707,96586.0,96581.0,0.00017013]
[1739489264695,0.2071576,96595.0,96581.0,0.00017013]
[1739489264805,0.155305,96584.0,96582.0,0.02001132]
[1739489265008,0.2071576,96595.0,96582.0,0.02001132]
[1739489265214,0.155306,96583.0,96581.0,0.00217013]
[1739489265472,0.155308,96582.0,96581.0,0.00217013]
[1739489265629,0.155308,96582.0,96581.0,0.02418145]
[1739489265833,0.155308,96582.0,96581.0,0.02207794]
[1739489266039,0.155308,96582.0,96581.0,0.02007794]
[1739489266261,0.155308,96582.0,96581.0,0.02207794]
[1739489266670,0.155308,96582.0,96581.0,0.02007794]
[1739489267065,0.155308,96582.0,96581.0,0.02001132]
[1739489267271,0.155308,96582.0,96581.0,0.002]
[1739489267469,0.155308,96582.0,96581.0,0.02201132]
[1739489267868,0.155308,96582.0,96581.0,0.002]
[1739489268274,0.155308,96582.0,96581.0,0.00222386]
[1739489268674,0.155308,96582.0,96581.0,0.00422386]
[1739489268892,0.155305,96584.0,96581.0,0.00422386]
[1739489269066,0.155308,96582.0,96581.0,0.00422386]
[1739489269269,0.155308,96582.0,96581.0,0.02423518]
[1739489269665,0.15320359,96582.0,96581.0,0.0021211]
[1739489269868,0.15320359,96582.0,96581.0,0.0001211]
[1739489271577,0.15320359,96582.0,96581.0,0.0011211]
[1739489271954,0.15320359,96582.0,96581.0,0.0001211]
[1739489275000,0.0001066,96587.0,96581.0,0.0001211]
[1739489275214,0.155308,96582.0,96581.0,0.0001211]
[1739489275553,0.155308,96582.0,96581.0,0.02013242]
[1739489275777,0.155308,96582.0,96581.0,0.0001211]
[1739489276385,0.0011066,96587.0,96581.0,0.0001211]
[1739489276912,0.155306,96583.0,96581.0,0.0001211]
[1739489277114,0.0001066,96587.0,96582.0,0.02001132]
[1739489277424,0.155306,96583.0,96582.0,0.02001132]
[1739489278745,0.155305,96584.0,96582.0,0.02001132]
[1739489278949,0.207073,96585.0,96582.0,0.02101132]
[1739489279086,0.155306,96583.0,96582.0,0.02101132]
[1739489279608,0.155306,96583.0,96582.0,0.02001132]
[1739489281375,0.1554126,96583.0,96582.0,0.02001132]
[1739489282242,0.0001066,96583.0,96582.0,0.17631932]
[1739489282404,0.0001066,96583.0,96582.0,0.25351932]
[1739489283496,0.0001066,96583.0,96582.0,0.02101132]
[1739489283704,0.0001066,96583.0,96582.0,0.17631932]
[1739489290736,0.0001066,96583.0,96582.0,0.27882297]
[1739489290896,0.0001066,96583.0,96582.0,0.40522297]
[1739489291099,0.0001066,96583.0,96582.0,0.43757245]
[1739489291362,0.1777265,96602.0,96582.0,0.28226445]
[1739489291658,0.19863099,96602.0,96594.0,0.207051]
[1739489291875,0.02090449,96602.0,96599.0,0.15528]
[1739489292253,0.155275,96603.0,96600.0,0.02003124]
[1739489292455,0.207029,96605.0,96600.0,0.02003124]
[1739489292657,0.155273,96604.0,96600.0,0.02003124]
[1739489292863,0.003,96602.0,96585.0,0.207071]
[1739489293044,0.155281,96599.0,96593.0,0.155289]
[1739489293429,0.155281,96599.0,96594.0,0.02003124]
[1739489293741,0.002,96602.0,96586.0,0.10250365]
[1739489293950,0.002,96602.0,96595.0,0.02003124]
[1739489294159,0.002,96602.0,96586.0,0.10250365]
[1739489294376,0.157277,96602.0,96596.0,0.17531624]
[1739489294583,0.0194014,96601.0,96596.0,0.155285]
[1739489294779,0.0194014,96601.0,96597.0,0.02003124]
[1739489295320,0.0194014,96601.0,96600.0,0.155279]
[1739489295673,0.14218386,96609.0,96600.0,0.02003124]
[1739489295885,0.533398,96619.0,96600.0,0.17530924]
[1739489296096,0.155271,96606.0,96601.0,0.17530824]
[1739489296306,0.155267,96608.0,96601.0,0.02003124]
[1739489296641,0.155268,96607.0,96601.0,0.155276]
[1739489296806,0.155268,96607.0,96602.0,0.02003124]
[1739489297185,0.17465959,96607.0,96602.0,0.02003124]
[1739489298464,0.01939159,96607.0,96602.0,0.02003124]
[1739489298594,0.01939159,96607.0,96606.0,0.155269]
[1739489298801,0.02097466,96613.0,96606.0,0.10250365]
[1739489299001,0.155256,96615.0,96609.0,0.155264]
[1739489299299,0.155256,96615.0,96610.0,0.0199442]
[1739489299502,0.207003,96617.0,96610.0,0.0199442]
[1739489299680,0.207003,96617.0,96607.0,0.30952665]
[1739489299887,0.155255,96616.0,96609.0,0.155263]
[1739489300088,0.01938021,96614.0,96611.0,0.155261]
[1739489300292,0.01938021,96614.0,96612.0,0.0199442]
[1739489301020,0.002,96613.0,96612.0,0.1752042]
[1739489301456,0.01938021,96614.0,96613.0,0.155258]
[1739489301660,0.002,96614.0,96613.0,0.155258]
[1739489301860,0.002,96614.0,96613.0,0.17518124]
[1739489302190,0.02338729,96615.0,96613.0,0.01992324]
[1739489302489,0.155249,96619.0,96613.0,0.17418024]
[1739489302636,0.003,96614.0,96613.0,0.17418024]
[1739489302839,0.005,96614.0,96613.0,0.17418024]
[1739489304015,0.002,96614.0,96613.0,0.17418024]
[1739489304449,0.02137168,96614.0,96613.0,0.17418024]
[1739489304844,0.01937168,96614.0,96613.0,0.17418024]
[1739489305050,0.02237168,96614.0,96613.0,0.22188024]
[1739489305457,0.01937168,96614.0,96613.0,0.22188024]
[1739489305791,0.01937168,96614.0,96613.0,0.22288024]
[1739489305997,0.01947828,96614.0,96613.0,0.22288024]
[1739489306146,0.01947828,96614.0,96613.0,0.22388024]
[1739489307501,0.01947828,96614.0,96613.0,0.06862324]
[1739489310196,0.17473528,96614.0,96613.0,0.02092324]
[1739489310593,0.17473528,96614.0,96613.0,0.002]
[1739489318604,0.17473528,96614.0,96613.0,0.00222386]
[1739489328797,0.01947828,96614.0,96613.0,0.00222386]
[1739489329366,0.01947828,96614.0,96613.0,0.02193916]
[1739489329570,0.155277,96601.0,96573.0,0.09297363]
[1739489329775,0.155308,96582.0,96573.0,0.09297363]
[1739489329983,0.155308,96582.0,96581.0,0.00025278]
[1739489331331,0.237608,96582.0,96581.0,0.00025278]
[1739489331535,0.25697968,96582.0,96581.0,0.00425278]
[1739489331941,0.25697968,96582.0,96581.0,0.00525278]
[1739489332100,0.25697968,96582.0,96581.0,0.00425278]
[1739489332512,0.26297968,96582.0,96581.0,0.00525278]
[1739489332916,0.26297968,96582.0,96581.0,0.00125278]
[1739489333352,0.26997968,96582.0,96581.0,0.00125278]
[1739489334308,0.26997968,96582.0,96549.0,0.1554676]
[1739489334510,0.26997968,96582.0,96550.0,0.10250365]
[1739489334511,0.207084,96579.0,96550.0,0.10250365]
[1739489334836,0.11467168,96582.0,96550.0,0.11577637]
[1739489335919,0.155337,96565.0,96550.0,0.11577637]
[1739489336075,0.155341,96562.0,96550.0,0.11577637]
[1739489336265,0.01937168,96581.0,96550.0,0.11577637]
[1739489336466,0.14437793,96570.0,96550.0,0.11577637]
[1739489336705,0.155337,96565.0,96550.0,0.11577637]
[1739489337443,0.20711,96567.0,96550.0,0.11577637]
[1739489337665,0.001,96565.0,96550.0,0.11677637]
[1739489338041,0.001,96565.0,96550.0,0.11577637]
[1739489338246,0.155338,96564.0,96550.0,0.11577637]
[1739489339151,0.155339,96563.0,96550.0,0.11577637]
[1739489340083,0.207112,96566.0,96550.0,0.11577637]
[1739489340305,0.155339,96563.0,96550.0,0.11577637]
[1739489340712,0.207114,96565.0,96550.0,0.11577637]
[1739489340906,0.0208669,96567.0,96550.0,0.11577637]
[1739489341148,0.15534,96562.0,96550.0,0.11577637]
[1739489341363,0.14437793,96560.0,96550.0,0.11577637]
[1739489342589,0.14437793,96560.0,96550.0,0.11588287]
[1739489343166,0.14437793,96560.0,96550.0,0.11688287]
[1739489344205,0.14437793,96560.0,96550.0,0.11788287]
[1739489344979,0.35150293,96560.0,96550.0,0.11788287]
[1739489345191,0.14437793,96560.0,96550.0,0.11788287]
[1739489345391,0.155346,96559.0,96550.0,0.11788287]
[1739489345613,0.155347,96559.0,96550.0,0.11788287]
[1739489345816,0.14437793,96560.0,96550.0,0.11788287]
[1739489346404,0.14437793,96560.0,96550.0,0.11688287]
[1739489346609,0.14437793,96560.0,96550.0,0.11888287]
[1739489346833,0.14437793,96560.0,96550.0,0.11788287]
[1739489347148,0.14437793,96560.0,96550.0,0.11588287]
[1739489347726,0.14437793,96560.0,96550.0,0.11788287]
[1739489348133,0.14437793,96560.0,96550.0,0.11588287]
[1739489348335,0.14437793,96560.0,96550.0,0.11688287]
[1739489348557,0.14437793,96560.0,96550.0,0.11788287]
[1739489351303,0.29972193,96560.0,96550.0,0.11788287]
[1739489351849,0.14437793,96560.0,96550.0,0.11788287]
[1739489353097,0.207119,96563.0,96550.0,0.11788287]
[1739489353271,0.15534,96562.0,96550.0,0.11788287]
[1739489353815,0.09475916,96560.0,96550.0,0.11788287]
[1739489354153,0.09475916,96560.0,96550.0,0.11688287]
[1739489354354,0.09475916,96560.0,96550.0,0.10361015]
[1739489354820,0.09475916,96560.0,96551.0,0.01347832]
[1739489355122,0.09475916,96560.0,96552.0,0.10250365]
[1739489355499,0.09475916,96560.0,96553.0,0.01347832]
[1739489355678,0.01930637,96559.0,96554.0,0.10250365]
[1739489357070,0.01930637,96558.0,96555.0,0.01347832]
[1739489357275,0.01930637,96558.0,96556.0,0.10250365]
[1739489357891,0.01930637,96558.0,96557.0,0.01347832]
[1739489358257,0.155341,96562.0,96557.0,0.01347832]
[1739489358464,0.09475916,96564.0,96557.0,0.01347832]
[1739489358784,0.30187716,96564.0,96556.0,0.10650365]
[1739489358961,0.155344,96560.0,96556.0,0.10650365]
[1739489359148,0.155348,96558.0,96556.0,0.10650365]
[1739489359349,0.155348,96557.0,96556.0,0.004]
[1739489359551,0.155348,96557.0,96556.0,0.002]
[1739489359797,0.03777685,96557.0,96550.0,0.0001065]
[1739489359976,0.155358,96551.0,96550.0,0.0001065]
[1739489360847,0.17475377,96551.0,96550.0,0.0001065]
[1739489361096,0.17475377,96551.0,96550.0,0.0041065]
[1739489361421,0.17475377,96551.0,96550.0,0.0001065]
[1739489362458,0.17475377,96551.0,96550.0,0.10361015]
[1739489362459,0.01939577,96551.0,96550.0,0.10361015]
[1739489362655,0.01939577,96551.0,96550.0,0.33496915]
[1739489362859,0.01939577,96551.0,96550.0,0.39619626]
[1739489363738,0.01939577,96551.0,96550.0,0.39519626]
[1739489363875,0.02039577,96551.0,96550.0,0.40119626]
[1739489364524,0.02039577,96551.0,96550.0,0.43355781]
[1739489364845,0.05041688,96551.0,96550.0,0.42655781]
[1739489365039,0.05141688,96551.0,96550.0,0.43055781]
[1739489365546,0.05041688,96551.0,96550.0,0.42655781]
[1739489365703,0.05141688,96551.0,96550.0,0.43055781]
[1739489366085,0.05141688,96551.0,96550.0,0.43655781]
[1739489366086,0.05241688,96551.0,96550.0,0.43655781]
[1739489366845,0.02139577,96551.0,96550.0,0.43655781]
[1739489367613,0.02139577,96551.0,96550.0,0.58655781]
[1739489368197,0.02139577,96551.0,96550.0,0.61186251]
[1739489368659,0.02139577,96551.0,96550.0,0.58655781]
[1739489369905,0.002,96551.0,96550.0,0.58655781]
[1739489372434,0.002,96551.0,96550.0,0.85758156]
[1739489377568,0.00022387,96567.0,96566.0,0.435334]
[1739489377769,0.00022387,96567.0,96566.0,0.55129516]
[1739489378190,0.00022387,96567.0,96566.0,0.58357822]
[1739489378595,0.00022387,96567.0,96566.0,0.85460197]
[1739489378817,0.00022387,96567.0,96566.0,0.85960197]
[1739489379231,0.00022387,96567.0,96566.0,0.86460197]
[1739489379493,0.00022387,96567.0,96566.0,0.85460197]
[1739489379738,0.00122387,96567.0,96566.0,0.86160197]
[1739489380549,0.00222387,96567.0,96566.0,0.86860197]
[1739489381995,0.00222387,96567.0,96566.0,0.88933126]
[1739489382735,0.00222387,96567.0,96566.0,0.91233126]
[1739489382945,8.7e-07,96567.0,96566.0,0.91233126]
[1739489387651,0.02610158,96605.0,96588.0,0.155298]
[1739489387849,0.02610158,96605.0,96588.0,0.25780165]
[1739489388151,0.02610158,96605.0,96598.0,0.155282]
[1739489388289,0.02610158,96605.0,96604.0,0.155273]
[1739489388496,0.155265,96609.0,96604.0,0.155273]
[1739489388698,0.155265,96609.0,96605.0,0.155271]
[1739489389371,0.155265,96609.0,96606.0,0.01335081]
[1739489389954,0.02549006,96609.0,96606.0,0.01335081]
[1739489390153,0.00204391,96609.0,96593.0,0.207053]
[1739489390358,0.155269,96607.0,96602.0,0.155274]
[1739489391099,0.155269,96607.0,96603.0,0.01335081]
[1739489391474,0.155269,96607.0,96602.0,0.155274]
[1739489391672,0.155269,96607.0,96604.0,0.01335081]
[1739489391877,0.155269,96607.0,96602.0,0.155274]
[1739489392074,0.155269,96607.0,96605.0,0.01335081]
[1739489392240,0.155269,96607.0,96603.0,0.155274]
[1739489392445,0.155269,96607.0,96604.0,0.01335081]
[1739489392797,0.157269,96607.0,96604.0,0.01335081]
[1739489392978,0.158269,96607.0,96604.0,0.01335081]
[1739489393174,0.156269,96607.0,96604.0,0.01335081]
[1739489393386,0.18108802,96609.0,96604.0,0.16862281]
[1739489393592,0.003,96607.0,96604.0,0.16862281]
[1739489394978,0.001,96607.0,96604.0,0.16862281]
[1739489395181,0.01932633,96606.0,96604.0,0.16862281]
[1739489396483,0.02032633,96606.0,96604.0,0.16862281]
[1739489396684,0.02132633,96606.0,96604.0,0.16862281]
[1739489397138,0.01932633,96605.0,96604.0,0.16862281]
[1739489398140,0.01932633,96605.0,96604.0,0.01335081]
[1739489398347,0.02032633,96605.0,96604.0,0.01335081]
[1739489398492,0.02032633,96605.0,96603.0,0.155273]
[1739489398716,0.02032633,96605.0,96604.0,0.01330745]
[1739489399115,0.17559733,96605.0,96604.0,0.01330745]
[1739489399316,0.17459733,96605.0,96604.0,0.01330745]
[1739489399558,0.17459733,96605.0,96600.0,0.155279]
[1739489399896,0.17559733,96605.0,96600.0,0.155279]
[1739489400060,0.155274,96604.0,96601.0,0.01330745]
[1739489401353,0.17459733,96605.0,96601.0,0.16858445]
[1739489401733,0.01932633,96605.0,96601.0,0.16858445]
[1739489401916,0.01932633,96604.0,96601.0,0.16858445]
[1739489402116,0.01932633,96604.0,96603.0,0.155274]
[1739489404810,0.01932633,96604.0,96603.0,0.161274]
[1739489407093,0.01932633,96604.0,96603.0,0.26377765]
[1739489412324,0.01932633,96604.0,96603.0,0.29612222]
[1739489412945,0.01932633,96604.0,96603.0,0.14084822]
[1739489413145,0.17459933,96604.0,96603.0,0.006]
[1739489413620,0.25429933,96604.0,96603.0,0.006]
[1739489414039,0.25429933,96604.0,96603.0,0.003]
[1739489414239,0.30329933,96604.0,96603.0,0.003]
[1739489414468,0.33434271,96604.0,96603.0,0.003]
[1739489415753,0.155276,96602.0,96601.0,0.01330745]
[1739489417273,0.05136971,96602.0,96601.0,0.01330745]
[1739489417459,0.05136971,96602.0,96601.0,0.16858445]
[1739489417630,0.05136971,96602.0,96601.0,0.2710881]
[1739489417839,0.05136971,96602.0,96601.0,0.25778065]
[1739489418015,0.05136971,96602.0,96601.0,0.26885118]
[1739489418441,0.02132633,96602.0,96601.0,0.26885118]
[1739489418912,0.02032633,96602.0,96601.0,0.26885118]
[1739489419115,0.02032633,96602.0,96601.0,0.27285118]
[1739489419313,0.01932633,96602.0,96601.0,0.42285118]
[1739489419518,0.0001066,96605.0,96604.0,0.155273]
[1739489419718,0.0001066,96605.0,96604.0,0.25677665]
[1739489419958,0.0001066,96605.0,96604.0,0.26784542]
[1739489420743,0.0001066,96605.0,96604.0,0.26984542]
[1739489420945,0.0001066,96605.0,96604.0,0.11557242]
[1739489421158,0.1553776,96605.0,96604.0,0.01306877]
[1739489421361,0.1553776,96605.0,96604.0,0.005]
[1739489422099,0.1553776,96605.0,96604.0,0.002]
[1739489422473,0.1553776,96605.0,96604.0,0.003]
[1739489422656,0.20572468,96605.0,96604.0,0.001]
[1739489422849,0.20572468,96605.0,96604.0,0.002]
[1739489424801,0.20572468,96605.0,96604.0,0.001]
[1739489425003,0.20672468,96605.0,96604.0,0.001]
[1739489425641,0.207044,96598.0,96577.0,0.0485]
[1739489425855,0.05045368,96605.0,96578.0,0.10250365]
[1739489425982,0.05045368,96605.0,96578.0,0.11350804]
[1739489426400,0.155289,96594.0,96578.0,0.11350804]
[1739489426642,0.155289,96594.0,96585.0,0.155302]
[1739489426805,0.155289,96594.0,96586.0,0.10250365]
[1739489427024,0.155289,96594.0,96586.0,0.11352276]
[1739489427419,0.155289,96594.0,96586.0,0.26882376]
[1739489427970,0.25737708,96604.0,96586.0,0.11352276]
[1739489428281,0.155288,96595.0,96586.0,0.26882376]
[1739489428499,0.155291,96593.0,96586.0,0.11752276]
[1739489428792,0.01936426,96593.0,96586.0,0.27282376]
[1739489429056,0.17465526,96593.0,96586.0,0.11752276]
[1739489429471,0.17465526,96593.0,96586.0,0.12052276]
[1739489429636,0.01936426,96592.0,96586.0,0.27282376]
[1739489429844,0.01936426,96592.0,96586.0,0.26882376]
[1739489430048,0.01936426,96592.0,96586.0,0.11652276]
[1739489430207,0.01936426,96592.0,96589.0,0.155296]
[1739489430610,0.01936426,96592.0,96590.0,0.01101911]
[1739489430852,0.01936426,96592.0,96586.0,0.10550365]
[1739489431072,0.20706491,96609.0,96591.0,0.01101911]
[1739489431259,0.14429669,96601.0,96586.0,0.10550365]
[1739489431463,0.19374775,96612.0,96586.0,0.10250365]
[1739489431754,0.155291,96593.0,96587.0,0.01101911]
[1739489431945,0.155291,96593.0,96587.0,0.11352276]
[1739489432387,0.155289,96594.0,96587.0,0.11352276]
[1739489432752,0.0193521,96592.0,96587.0,0.11352276]
[1739489433752,0.0193521,96591.0,96587.0,0.11552276]
[1739489433953,0.0193521,96591.0,96587.0,0.11352276]
[1739489434397,0.0193521,96591.0,96587.0,0.11552276]
[1739489434912,0.0193521,96591.0,96587.0,0.11752276]
[1739489435110,0.0193521,96590.0,96587.0,0.11752276]
[1739489435316,0.0193521,96590.0,96587.0,0.11552276]
[1739489435680,0.0193521,96590.0,96587.0,0.11852276]
[1739489435879,0.0193521,96589.0,96587.0,0.11852276]
[1739489436102,0.0193521,96589.0,96587.0,0.11352276]
[1739489437044,0.0193521,96589.0,96587.0,0.11652276]
[1739489437426,0.0193521,96588.0,96587.0,0.11952276]
[1739489437992,0.0193521,96588.0,96587.0,0.11652276]
[1739489438191,0.0193521,96588.0,96587.0,0.12052276]
[1739489438635,0.0193521,96588.0,96587.0,0.11652276]
[1739489439062,0.0193521,96588.0,96587.0,0.12052276]
[1739489439704,0.0193521,96588.0,96587.0,0.11752276]
[1739489439918,0.0193521,96588.0,96587.0,0.12052276]
[1739489440069,0.0193521,96588.0,96587.0,0.11752276]
[1739489440473,0.0193521,96588.0,96587.0,0.11652276]
[1739489440695,0.0193521,96588.0,96587.0,0.12052276]
[1739489444902,0.0193521,96588.0,96587.0,0.27582276]
[1739489447915,0.155292,96592.0,96587.0,0.12052276]
[1739489448315,0.155292,96592.0,96587.0,0.11352276]
[1739489448658,0.01938418,96591.0,96587.0,0.11552276]
[1739489449071,0.01938418,96591.0,96587.0,0.26882176]
[1739489449630,0.01938418,96591.0,96587.0,0.27082176]
[1739489449826,0.01938418,96590.0,96587.0,0.26882176]
[1739489450215,0.01938418,96590.0,96587.0,0.27182176]
[1739489450500,0.01938418,96590.0,96587.0,0.27382176]
[1739489450756,0.01938418,96590.0,96588.0,0.155298]
[1739489450987,0.01938418,96590.0,96588.0,0.16630551]
[1739489451225,0.01938418,96589.0,96588.0,0.16630551]
[1739489452399,0.01938418,96589.0,96588.0,0.16930551]
[1739489453010,0.01938418,96589.0,96588.0,0.17230551]
[1739489453478,0.01938418,96589.0,96588.0,0.16930551]
[1739489454380,0.01938418,96589.0,96588.0,0.01800751]
[1739489454991,0.01938418,96589.0,96588.0,0.17330551]
[1739489459434,0.01938418,96589.0,96588.0,0.01800751]
[1739489459812,0.01938418,96589.0,96588.0,0.17330551]
[1739489463612,0.01938418,96589.0,96588.0,0.01800751]